[Event "European Women-ch 2023"]
[Site "Petrovac"]
[Date "2023.03.25"]
[Round "7.10"]
[White "Zhukova, Natalia"]
[Black "Richterova, Natasa"]
[Result "1-0"]
[Annotator "TA"]
[ECO "D15"]
[WhiteElo "2322"]
[BlackElo "2190"]
[PlyCount "150"]
[EventDate "2023.03.15"]
[EventType "swiss"]
[EventCountry "MNE"]
[SourceTitle "playchess.com"]
[Source "ChessBase"]
[SourceQuality "1"]
[TimeControl "40/5400+30:1800+30"]

{[%evp 13,149,20,12,19,43,34,43,40,43,36,35,19,31,21,58,51,58,52,67,66,55,60,60,52,80,57,71,60,102,87,99,0,132,91,218,228,264,227,290,306,304,153,127,131,139,97,129,49,41,46,44,8,8,8,13,0,0,-47,-12,-130,-136,-135,-127,-171,-156,-192,-168,-195,-156,-118,0,-192,-181,-270,-240,-316,-365,-492,-430,-408,-396,-260,-15,-222,-15,-22,-22,-22,-8,-8,-8,-8,0,0,0,0,0,0,0,0,0,0,0,0,0,0,273,196,198,0,0,0,29969,29971,29970,29972,29971,29972,29973,29974,29974,29974,29975,29975,29974,29972,29972,29971,29973,29972,29970,1510,29981,29982,29982,29983,29981,29983]} 1. d4 {[%emt 0:00:11]} d5 {[%emt 0:00:35]} 2. c4 {[%emt 0:00:13]} c6 {[%emt 0:00:06]} 3. Nf3 {[%emt 0:00:18]} Nf6 {[%emt 0:00:41]} 4. Nc3 {[%emt 0:00:15]} a6 {[%emt 0:00:32]} 5. e3 {[%emt 0:00:45]} b5 {[%emt 0:00:32]} 6. b3 {[%emt 0:00:26]} Bg4 {[%emt 0:00:25]} 7. Be2 {[%emt 0:00:30] 7.a4 might become the main line.} Nbd7 {[%emt 0:00:54]} 8. h3 {[%emt 0:00:56] D15: Slav Defence: 4 Nc3 a6 and gambit lines after 4 Nc3 dxc4.} Bxf3 {[%emt 0:03:46]} 9. Bxf3 {[%emt 0:00:09][%cal Rc4d5]} e6 {[%emt 0:05:20]} 10. O-O {[%emt 0:00:25] White is slightly better.} Rc8 {[%emt 0:04:38]} 11. Qe2 {[%emt 0:02:28]} Be7 {[%emt 0:10:12] [#]} 12. a4 $146 {[%emt 0:15:27][%cal Ra4b5]} ({Predecessor:} 12. e4 dxe4 13. Nxe4 O-O 14. Be3 Re8 15. Rfd1 Qa5 16. Rac1 Nxe4 17. Bxe4 Nf6 18. Bf3 {½-½ Cobb,C (2393)-Fahrner,K (2369) EU-Cup 19th Rethymno 2003 (3.1)}) 12... b4 {[%emt 0:05:47]} 13. Nb1 {[%emt 0:01:39]} O-O {[%emt 0:02:56]} 14. Bb2 {[%emt 0:07:29]} Ne4 {[%emt 0:09:54]} 15. Bxe4 {[%emt 0:04:58]} dxe4 {[%emt 0:00:19]} 16. Nd2 {[%emt 0:00:04]} f5 {[%emt 0:00:38]} 17. c5 $1 {[%emt 0:10:49]} a5 {[%emt 0:00:12]} 18. Qc4 {[%emt 0:02:11]} Rf6 {[%emt 0:01:04]} 19. f3 {[%emt 0:00:56]} exf3 {[%emt 0:01:19]} 20. Rxf3 {[%emt 0:09:49]} Kh8 {[%emt 0:08:55]} 21. Raf1 {[%emt 0:02:42]} Rg6 {[%emt 0:14:16][%cal Od7c5]} 22. Qc2 {[%emt 0:08:34]} (22. Qa6 $16) 22... Qc7 {[%emt 0:07:43]} (22... Nf6 $1 $11) 23. Nc4 {[%emt 0:08:28]} Rf8 {[%emt 0:07:41]} (23... Nf6 $16 {keeps fighting.}) 24. e4 $18 {[%emt 0:02:40]} fxe4 {[%emt 0:05:14]} 25. Rxf8+ {[%emt 0:04:46]} (25. Qxe4 Rc8 26. Bc1 Qd8 $18) 25... Bxf8 {[%emt 0:00:10]} 26. Qxe4 {[%emt 0:00:22]} Kg8 {[%emt 0:02:41]} 27. Qf4 {[%emt 0:11:14]} (27. Qf3 $6 Rf6 28. Qe4 Rxf1+ 29. Kxf1 e5 $18) (27. Kh1 $18) 27... Qxf4 $16 {[%emt 0:00:01]} 28. Rxf4 {[%emt 0:00:04]} e5 {[%emt 0:00:25]} 29. Rf5 {[%emt 0:00:10]} (29. Nxe5 $6 Nxe5 30. dxe5 Rg3 $11) 29... Re6 {[%emt 0:03:31]} 30. dxe5 {[%emt 0:02:38] White has more active pieces.} ({White should try} 30. Nxa5 $16 exd4 31. Bxd4) 30... Bxc5+ $14 {[%emt 0:01:19]} 31. Kf1 {[%emt 0:00:10]} Bb6 {[%emt 0:00:46]} 32. Nxb6 {[%emt 0:02:40]} Nxb6 {[%emt 0:00:01][%mdl 4096] Endgame KRB-KRN} 33. Ke2 {[%emt 0:00:53]} Nd7 {[%emt 0:01:39]} 34. Kd3 {[%emt 0:00:34]} g6 {[%emt 0:00:28]} 35. Rg5 {[%emt 0:01:26]} (35. Rf2 $11 {might be stronger.}) 35... Kf7 $1 $15 {[%emt 0:00:17]} 36. Kc4 {[%emt 0:00:19]} (36. h4 $11) 36... h6 $17 {[%emt 0:01:05][%mdl 64] Deflection} 37. Rg3 {[%emt 0:00:20]} Nxe5+ {[%emt 0:00:08]} 38. Bxe5 {[%emt 0:00:58]} Rxe5 {[%emt 0:00:00] KR-KR} 39. Rd3 {[%emt 0:00:32]} Ke7 {[%emt 0:00:12] Dodges Rd6} 40. Rg3 {[%emt 0:00:00]} Kf6 {[%emt 0:00:00]} 41. Rd3 {[%emt 0:01:03]} Ke7 {[%emt 0:06:06] Against Rd6} (41... Ke6 $17 42. Rd8 h5) 42. Rg3 $1 $19 {[%emt 0:02:58]} g5 $1 {[%emt 0:07:29]} 43. Rd3 {[%emt 0:08:27]} (43. Rf3 $142) 43... h5 {[%emt 0:00:09][%cal Bh6h5,Bh5h4][%mdl 32]} 44. Rd2 {[%emt 0:09:49]} h4 {[%emt 0:08:27]} 45. Rd4 {[%emt 0:08:36]} Rf5 {[%emt 0:02:36]} 46. Rd2 {[%emt 0:00:28]} Ke6 {[%emt 0:01:20]} 47. Rd8 {[%emt 0:02:00]} Ke5 $2 {[%emt 0:09:25]} (47... Rf2 $19 48. Ra8 Rc2+ 49. Kd3 Rxg2 50. Rxa5 Rg3+ 51. Kc4 Kf6) 48. Kc5 $2 {[%emt 0:00:51] [#]} (48. Rd2 $1 $11) 48... Kf4+ $2 {[%emt 0:00:01]} (48... Rf2 $1 $19 {[%cal Rf2g2]} 49. Ra8 Rxg2 50. Rxa5 Rg3 51. Kxb4+ (51. Kxc6+ $2 Kf6 $19) 51... Kf4) 49. Kxc6 $11 {[%emt 0:00:08]} Kg3 {[%emt 0:00:02]} 50. Rd2 {[%emt 0:00:29]} Rf2 {[%emt 0:00:03]} 51. Rd5 {[%emt 0:00:32][%csl LRa5,LRg5]} g4 {[%emt 0:02:04]} 52. hxg4 {[%emt 0:01:09]} (52. Rxa5 $2 Rf6+ 53. Kc7 Kxg2 54. hxg4 h3 $19) 52... Kxg4 {[%emt 0:00:45]} 53. Rxa5 {[%emt 0:00:07]} Rb2 {[%emt 0:01:35]} 54. Ra8 {[%emt 0:00:29]} Rxb3 {[%emt 0:00:04]} 55. Rg8+ {[%emt 0:00:40]} Kf4 {[%emt 0:00:08]} 56. Rh8 {[%emt 0:00:32]} Kg3 {[%emt 0:00:29]} 57. Rg8+ {[%emt 0:00:03]} Kf2 {[%emt 0:00:16]} 58. Rg4 {[%emt 0:00:18]} Rb1 {[%emt 0:01:09]} 59. Rxh4 {[%emt 0:00:16] a5 is the strong threat.} (59. Kb5 $5) 59... Kg3 $2 {[%emt 0:01:12][%mdl 8192]} (59... b3 $11 {and Black is okay.}) 60. Rc4 {[%emt 0:00:31] Threatens to win with a5.} b3 {[%emt 0:00:00][%cal Bb4b3,Bb3b2][%mdl 32] [#] Strongly threatening ...b2!} 61. Rb4 $2 {[%emt 0:00:22]} (61. Rc3+ $1 $18 Kf2 62. Kb5 (62. a5 b2 $11)) 61... b2 $1 {[%emt 0:00:06] aiming for ...Rc1+.} (61... Kxg2 62. Kb6 (62. a5 Ra1 $11) 62... Ra1 63. Kb5 $18 (63. Rxb3 Rxa4 64. Kc6 Ra5 $11) (63. a5 Ra3 $11)) 62. Kb5 {[%emt 0:00:18] a5 would be deadly.} (62. Kb6 $5 Ra1 $8 63. Rxb2 Rxa4 64. Re2 $11) 62... Kxg2 $2 {[%emt 0:00:12][%mdl 8192]} (62... Kf2 $11) 63. a5 {[%emt 0:00:25]} Kf3 {[%emt 0:00:04]} 64. a6 {[%emt 0:00:21]} Ke3 {[%emt 0:00:07]} 65. Kb6 {[%emt 0:00:31]} Rh1 {[%emt 0:01:54]} 66. Rxb2 {[%emt 0:00:13]} Rh6+ {[%emt 0:00:46]} 67. Ka5 {[%emt 0:00:30]} Rh5+ {[%emt 0:00:32]} 68. Rb5 {[%emt 0:00:13]} Rh7 {[%emt 0:00:22]} 69. Rb7 {[%emt 0:00:37]} Rh5+ {[%emt 0:00:17]} 70. Kb4 {[%emt 0:00:49]} Rh4+ {[%emt 0:00:12]} 71. Kb3 {[%emt 0:01:58]} Rh1 {[%emt 0:00:59]} 72. a7 {[%emt 0:00:25]} (72. Kb2 $142 Rh2+ 73. Ka3 Rh8 74. a7 Ra8 75. Kb4 Kf4 76. Kc5 Rc8+ 77. Kb5) 72... Ra1 {[%emt 0:00:07]} 73. Kb2 {[%emt 0:00:36] White mates.} Ra6 {[%emt 0:00:10]} 74. Rb3+ {[%emt 0:00:15]} Kd4 {[%emt 0:00:06]} 75. Ra3 {[%emt 0:00:04]} Kd5 {[%emt 0:01:08] A wild game.   Weighted Error Value: White=0.30/Black=0.42} 1-0

[Event "European Women-ch 2023"]
[Site "Petrovac"]
[Date "2023.03.25"]
[Round "7.10"]
[White "Ibrahimova, Sabina"]
[Black "Slaba, Andrea"]
[Result "1-0"]
[Annotator "TA"]
[ECO "B15"]
[WhiteElo "2207"]
[BlackElo "2061"]
[PlyCount "117"]
[EventDate "2023.03.15"]
[EventType "swiss"]
[EventCountry "MNE"]
[SourceTitle "playchess.com"]
[Source "ChessBase"]
[SourceQuality "1"]
[TimeControl "40/5400+30:1800+30"]

{[%evp 13,117,34,36,9,15,23,20,43,30,29,38,27,26,15,15,7,20,27,54,17,55,4,98,82,79,71,45,61,76,7,1,0,0,-12,-15,-16,38,0,0,0,0,0,16,12,29,0,48,0,21,25,126,126,120,120,124,114,123,112,115,115,127,121,123,34,112,107,150,152,133,8,108,129,171,165,172,167,173,122,166,183,166,160,251,245,331,331,401,261,246,0,496,496,558,227,234,87,89,91,417,362,29984,29985,29984,29985,29998,29999]} 1. e4 {[%emt 0:00:04]} c6 {[%emt 0:00:05]} 2. d4 {[%emt 0:00:08]} d5 {[%emt 0:00:04]} 3. f3 {[%emt 0:00:07]} g6 {[%emt 0:00:13]} 4. Nc3 {[%emt 0:00:13]} Bg7 {[%emt 0:00:32]} 5. Be3 {[%emt 0:00:20]} dxe4 {[%emt 0:01:27]} 6. fxe4 {[%emt 0:00:28]} Nf6 {[%emt 0:01:09]} 7. Nf3 {[%emt 0:01:25]} Ng4 {[%emt 0:07:12] is recently more successful than 7...0-0.} 8. Bf4 {[%emt 0:00:28] B15: Caro-Kann: 3 Nc3: 3...g6 and 3...dxe4 4 Nxe4 Nf6 5 Nxf6+ exf6.} e5 {[%emt 0:12:30]} 9. dxe5 {[%emt 0:03:27]} Qxd1+ {[%emt 0:05:12]} 10. Rxd1 {[%emt 0:00:20] Strongly threatening h3. The position is equal.} Nd7 {[%emt 0:00:08] [#]} 11. e6 $1 {[%emt 0:08:39]} fxe6 {[%emt 0:00:38]} 12. h3 {[%emt 0:00:59]} Nge5 {[%emt 0:03:25] [#]} 13. Nd4 $146 {[%emt 0:01:30]} ({Predecessor:} 13. Be2 Nxf3+ 14. gxf3 e5 15. Be3 Nf6 16. Bc4 Nh5 17. Kf2 Bf6 18. Ne2 Bd8 19. Rd2 {1-0 Burggraf,M (2051)-Bartsch,B (2311) Forchheim op-A 2003 (5)}) 13... Nb6 {[%emt 0:01:38]} 14. Be2 {[%emt 0:04:09]} O-O {[%emt 0:07:37]} (14... Nec4 {looks sharper.} 15. Bc1 O-O 16. Rf1 Rd8) 15. O-O {[%emt 0:02:42]} Nf7 {[%emt 0:01:39]} 16. Bc1 {[%emt 0:05:18]} Bd7 {[%emt 0:11:19]} 17. a4 {[%emt 0:00:51]} ({White should play} 17. Be3 $14) 17... Ne5 {[%emt 0:07:57]} (17... c5 $11 18. Nb3 Bxa4) 18. a5 {[%emt 0:01:09] Threatens to win with Nf3.} Rxf1+ {[%emt 0:01:12]} 19. Bxf1 {[%emt 0:00:17]} (19. Rxf1 Nbc4 $14) 19... Nbc4 {[%emt 0:01:07]} 20. Nb3 {[%emt 0:02:57] Hoping for Bxc4.} Be8 {[%emt 0:04:22]} 21. Nc5 {[%emt 0:03:50]} (21. Rd4 $1 $16 Nxa5 22. Nxa5 Nf3+ 23. gxf3 Bxd4+ 24. Kg2) 21... Nxa5 $11 {[%emt 0:02:18]} 22. Nxe6 {[%emt 0:00:15]} Bf6 {[%emt 0:03:00]} 23. Bf4 {[%emt 0:13:28]} Nac4 {[%emt 0:05:55]} 24. b3 {[%emt 0:02:38]} Nb6 {[%emt 0:01:01]} (24... Na3 $11) 25. Ne2 {[%emt 0:06:14][%cal Bc3e2,Be2d4,Bd4f3][%mdl 32]} (25. Nc5 $5 {[%cal Rc5b7]}) 25... Nbd7 {[%emt 0:01:04] Prevents Nc5.} 26. N2d4 {[%emt 0:01:30]} Bf7 {[%emt 0:00:41]} 27. Ng5 {[%emt 0:00:20]} a6 {[%emt 0:01:11]} 28. Ndf3 {[%emt 0:00:41]} Re8 {[%emt 0:03:19]} 29. Be2 {[%emt 0:06:51]} Re7 {[%emt 0:03:36]} (29... Nf8 $11 {was preferrable.}) 30. Bc1 {[%emt 0:02:18]} (30. Nxe5 $14 {is more appropriate.} Nxe5 31. Rd6) 30... Re8 {[%emt 0:03:54]} 31. Rf1 {[%emt 0:03:22][%cal Bd1f1,Bf1f6,Bf6d6][%mdl 32]} h6 {[%emt 0:03:10]} (31... Nc5 $11) 32. Nxe5 $16 {[%emt 0:06:13]} Nxe5 {[%emt 0:05:15]} 33. Rxf6 {[%emt 0:08:29] And now Nxf7 would win.} hxg5 {[%emt 0:00:01]} 34. Rd6 {[%emt 0:00:10] Prevents Nd7.} Be6 {[%emt 0:00:40]} 35. Kf2 {[%emt 0:03:07]} (35. Bxg5 Nf7 36. Bf4 Nxd6 37. Bxd6 Rd8 $17) 35... Nf7 {[%emt 0:00:16]} 36. Rd1 {[%emt 0:00:40]} Ra8 {[%emt 0:00:27]} 37. Ke3 {[%emt 0:02:33]} a5 {[%emt 0:01:06]} 38. Kd4 {[%emt 0:00:34]} ({Better is} 38. Bb2 $16) 38... b6 {[%emt 0:00:39]} (38... a4 $14) 39. Rf1 {[%emt 0:02:47]} a4 {[%emt 0:01:10]} 40. Rf6 {[%emt 0:00:00][%csl LRe6,LRg6]} Nd8 {[%emt 0:00:00] [#]} 41. Bxg5 {[%emt 0:17:28]} (41. Rxg6+ $6 Kf7 42. Bh5 (42. Rxg5 a3 $11) 42... a3 $14) (41. bxa4 $1 $16 {Ke5 would be deadly.} Kg7 42. Bxg5) 41... Bf7 {[%emt 0:13:16]} (41... a3 $1 $11 {keeps the balance.} 42. Kd3 (42. Rxg6+ $2 {perishes.} Kh7 $19) 42... Nb7) 42. Kc3 {[%emt 0:04:58] White is much more active.} axb3 {[%emt 0:04:34]} 43. cxb3 {[%emt 0:00:13]} Ne6 {[%emt 0:01:51]} 44. Be3 {[%emt 0:04:00]} Kg7 {[%emt 0:00:15]} 45. Rf1 {[%emt 0:02:56]} (45. Rf2 $18) 45... c5 {[%emt 0:01:27]} 46. Bc4 {[%emt 0:01:51]} Ra2 {[%emt 0:00:54]} 47. g4 {[%emt 0:05:08]} Nd8 {[%emt 0:04:06]} (47... Rh2 $16) 48. Bg5 $18 {[%emt 0:04:36]} Bxc4 {[%emt 0:01:48]} 49. Kxc4 {[%emt 0:00:11][%mdl 4096] Endgame KRB-KRN} Nc6 {[%emt 0:01:44]} 50. Kb5 {[%emt 0:01:56]} Nd4+ {[%emt 0:01:26]} 51. Kc4 $2 {[%emt 0:00:20]} (51. Kxb6 $18 Nxb3 52. e5) 51... Rc2+ $2 {[%emt 0:00:46][%mdl 8192]} (51... Nc6 $1 $11) 52. Kd5 {[%emt 0:00:19]} Nxb3 {[%emt 0:00:17]} 53. Ke6 {[%emt 0:00:16]} (53. e5 $142) 53... Re2 {[%emt 0:01:24] [#]} 54. Bf6+ {[%emt 0:00:26]} (54. Rf7+ $1 $18 {and White stays clearly on top.} Kg8 55. Rb7 Rxe4+ 56. Kf6) 54... Kg8 $16 {[%emt 0:00:38]} 55. e5 {[%emt 0:00:31] aiming for Ke7.} Rd2 $2 {[%emt 0:02:31][%mdl 8192] Black cannot hold the game after this.} (55... c4 $16 {is tougher.}) 56. Bg5 $18 {[%emt 0:00:58][%cal Oe6e7] White threatens Ke7! and mate.} Rd3 $2 {[%emt 0:01:38]} (56... Re2 $18 57. Rf6 Kg7 58. Rf7+ Kg8) 57. Ke7 {[%emt 0:00:16] White mates.} Nd4 {[%emt 0:00:21]} 58. Rf8+ {[%emt 0:00:56]} Kg7 {[%emt 0:00:11]} 59. Bf6+ {[%emt 0:00:11] Weighted Error Value: White=0.32/Black=0.50} 1-0

[Event "European Women-ch 2023"]
[Site "Petrovac"]
[Date "2023.03.25"]
[Round "7.11"]
[White "Ovod, Evgenija"]
[Black "Efroimski, Marsel"]
[Result "1/2-1/2"]
[Annotator "TA"]
[ECO "C07"]
[WhiteElo "2305"]
[BlackElo "2451"]
[PlyCount "128"]
[EventDate "2023.03.15"]
[EventType "swiss"]
[EventCountry "MNE"]
[SourceTitle "playchess.com"]
[Source "ChessBase"]
[SourceQuality "1"]
[TimeControl "40/5400+30:1800+30"]

{[%evp 15,128,18,23,14,14,-10,0,0,0,0,8,0,14,7,7,10,27,-61,-57,-57,-56,-76,-72,-87,-80,-81,-87,-137,-72,-136,0,0,0,-122,-66,-73,-78,-100,-94,-84,-107,-113,0,0,0,0,0,-22,0,-48,-61,-106,-106,-106,-106,-106,-106,-105,-101,-135,-134,-135,-135,-187,-110,-114,342,332,577,0,0,0,0,0,0,0,0,0,0,0,0,0,0,-4,-12,-23,-28,-43,-47,-79,0,0,0,0,0,0,0,0,0,0,0,0,0,0,0,0,0,0,0,0,0,0,0,0,0]} 1. e4 {[%emt 0:00:02]} e6 {[%emt 0:00:03]} 2. d4 {[%emt 0:00:09]} d5 {[%emt 0:00:03]} 3. Nd2 {[%emt 0:00:08]} c5 {[%emt 0:00:04]} 4. Ngf3 {[%emt 0:00:08]} cxd4 {[%emt 0:00:04]} 5. Nxd4 {[%emt 0:00:22]} Nc6 {[%emt 0:00:04]} 6. Bb5 {[%emt 0:00:16]} Bd7 {[%emt 0:00:04]} 7. Nxc6 {[%emt 0:00:13]} bxc6 {[%emt 0:00:04]} 8. Bd3 {[%emt 0:00:09]} Qc7 {[%emt 0:00:04]} 9. Qe2 {[%emt 0:01:21] C07: French Tarrasch: 3...c5, 4 Ngf3 and 4 exd5 Qxd5.} Ne7 {[%emt 0:00:11]} 10. e5 {[%emt 0:04:48]} Ng6 {[%emt 0:01:44] aiming for ...Nf4.} 11. Nf3 {[%emt 0:00:22]} f6 {[%emt 0:00:23][%cal Rg6e5]} 12. Bxg6+ {[%emt 0:09:54]} hxg6 {[%emt 0:00:11]} 13. O-O {[%emt 0:00:05]} g5 {[%emt 0:16:41]} 14. h3 {[%emt 0:00:32] [#]} c5 $146 {[%emt 0:01:20]} ({Predecessor:} 14... Bc5 15. Bd2 Bb6 16. c4 Qb7 17. Rac1 Bd8 18. Rfe1 O-O 19. b3 a5 20. Qd3 Bc8 {½-½ Martin Del Campo C,R (2290)-Garcia De Dios,J (2206) Mexico City Fenamac IM-2 1st 2021 (5)}) 15. c4 {[%emt 0:05:16]} d4 {[%emt 0:03:04]} 16. Ne1 {[%emt 0:01:39]} (16. b4 $11) 16... Qxe5 $15 {[%emt 0:17:53]} (16... fxe5 17. Nf3 $14) 17. Qxe5 {[%emt 0:00:13]} fxe5 {[%emt 0:00:02]} 18. Nf3 {[%emt 0:00:30] [#]} g4 $36 {[%emt 0:03:08][%mdl 2048] Keeping White busy.} 19. hxg4 {[%emt 0:01:24]} e4 {[%emt 0:04:55]} 20. Ng5 {[%emt 0:00:13]} Bd6 $1 {[%emt 0:03:09][%cal Bf8d6,Bd6h2,Bh2g3][%mdl 32] Hoping for ...Bh2+.} 21. Nxe4 {[%emt 0:22:25]} ({White should try} 21. Re1) 21... Bh2+ $17 {[%emt 0:00:14]} 22. Kh1 {[%emt 0:00:03][%cal Oe4g5]} Bg3+ {[%emt 0:06:16][%mdl 1024] Black has strong compensation.} 23. Kg1 {[%emt 0:00:07]} Bh2+ {[%emt 0:00:02]} 24. Kh1 {[%emt 0:00:04][%cal Oe4g5]} O-O-O {[%emt 0:01:06][%cal Ba8d8,Bd8f8,Bf8f3][%mdl 32]} (24... Bc6 $17 25. f3 d3) 25. Ng5 $15 {[%emt 0:10:06]} Rdf8 {[%emt 0:06:41] Dodges Nf7} 26. Nh3 {[%emt 0:02:30]} Bc7 {[%emt 0:00:36]} 27. Bg5 {[%emt 0:18:04]} Bc6 {[%emt 0:12:13]} 28. Kg1 {[%emt 0:02:29] [#]} Rxh3 {[%emt 0:05:29]} 29. gxh3 $11 {[%emt 0:00:03] Threatens to win with f4.} Rf3 {[%emt 0:00:08]} 30. h4 {[%emt 0:02:03]} Rh3 {[%emt 0:00:23][%csl Gh3][%cal Rc7h2]} 31. f4 $1 {[%emt 0:00:34]} e5 {[%emt 0:06:11]} 32. Rae1 {[%emt 0:06:04]} (32. fxe5 $11 {might be stronger.} Bxe5 33. Rf8+ Kb7 34. Raf1) 32... exf4 $1 $15 {[%emt 0:02:09] ( -> ...Rg3+)} 33. Bxf4 {[%emt 0:06:24]} Rh1+ {[%emt 0:02:12]} (33... Rxh4 34. Bxc7 Rxg4+ 35. Kh2 Rg2+ 36. Kh3 Kxc7 37. Rf7+ Kd6 38. Rfe7 $16 (38. Rxa7 Rxb2 39. Rxg7 Rxa2 $16)) 34. Kf2 {[%emt 0:00:03]} Rxf1+ {[%emt 0:00:33]} (34... Rxh4 $2 35. Bxc7 Kxc7 36. Kg3 $18) 35. Rxf1 {[%emt 0:00:06]} Bxf4 {[%emt 0:00:04]} 36. Ke2 {[%emt 0:00:03]} Bg3 {[%emt 0:02:34]} 37. Rf5 {[%emt 0:03:37]} Be4 {[%emt 0:01:11]} (37... Bxh4 38. Rxc5 Kb7 39. Rf5 $11) 38. Rxc5+ {[%emt 0:00:08]} Kb7 {[%emt 0:03:57][%cal Og3f4]} 39. Rg5 {[%emt 0:06:14] [#]} (39. Ra5 $17) 39... g6 {[%emt 0:04:06]} (39... d3+ $1 $19 40. Ke3 Bf4+ {[%mdl 64] Double Attack} 41. Kxe4 (41. Kxf4 d2 $19) 41... Bxg5 42. Kxd3 (42. hxg5 $2 d2 $19) 42... Bxh4) 40. h5 {[%emt 0:00:00] [#]} d3+ $2 {[%emt 0:00:00][%mdl 8192]} (40... Bf4 $1 $17 {[%cal Rf4g5] keeps the pressure on.} 41. Rb5+ (41. Rxg6 $2 d3+ 42. Kf1 d2 $19) 41... Kc6) 41. Ke3 $18 {[%emt 0:01:46]} Bf4+ $2 {[%emt 0:05:55]} (41... d2 42. Rb5+ (42. Kxe4 $2 {is the wrong capture.} d1=Q $19) 42... Kc6 43. Kxd2 (43. Kxe4 $2 d1=Q $19) 43... Bf4+ 44. Kc3 gxh5 45. gxh5 Bh6) 42. Kxf4 $2 {[%emt 0:00:28]} (42. Kxe4 $18 Bxg5 43. Kxd3 gxh5 44. gxh5) 42... d2 $11 {[%emt 0:00:05]} 43. Kxe4 {[%emt 0:00:26] Threatening mate with Rd5.} ({Avoid the trap} 43. Rb5+ $2 Kc6 44. hxg6 d1=Q $19) 43... d1=Q {[%emt 0:00:04] ...Qe2+ is the strong threat.} 44. hxg6 {[%emt 0:06:07][%mdl 4096] Endgame KQ-KR} (44. Rxg6 Qc2+ 45. Kf4 Qxc4+ 46. Kg5 Qc1+ 47. Kh4 Qxb2 $17) 44... Qc2+ {[%emt 0:05:43]} 45. Ke5 {[%emt 0:05:47]} Qxb2+ {[%emt 0:02:49]} 46. Ke6 {[%emt 0:04:00] White wants to mate with Rb5+.} Qb6+ {[%emt 0:02:37]} 47. Kf7 {[%emt 0:02:53] White threatens Rb5 and mate.} Qc7+ {[%emt 0:00:14]} 48. Kf6 $1 {[%emt 0:00:53]} Qd8+ {[%emt 0:00:35]} 49. Kf5 {[%emt 0:00:24]} Qf8+ {[%emt 0:02:33]} 50. Ke6 $1 {[%emt 0:01:53]} Qg7 {[%emt 0:02:10] And now ...Kc6 would win.} 51. Rb5+ $1 {[%emt 0:00:12]} Kc6 {[%emt 0:00:07]} 52. Kf5 {[%emt 0:00:04]} Kd6 {[%emt 0:03:49]} (52... Qd4 $17 53. Kg5 Qxc4) 53. Kg5 {[%emt 0:02:08] The position is equal.} Ke6 {[%emt 0:05:50] ...Qf6+ would be deadly.} 54. Rf5 {[%emt 0:00:17] Prevents Qf6+.} Qd4 {[%emt 0:01:17]} 55. a4 {[%emt 0:03:09]} a5 {[%emt 0:00:28]} 56. Kh5 {[%emt 0:00:46]} Qh8+ {[%emt 0:03:04]} 57. Kg5 {[%emt 0:00:05]} Qc3 {[%emt 0:00:48]} 58. Kh5 {[%emt 0:00:57]} Ke7 {[%emt 0:00:31]} 59. Rf7+ {[%emt 0:00:55]} Ke8 {[%emt 0:00:14]} 60. Rf5 {[%emt 0:00:23]} Qh8+ {[%emt 0:01:08]} 61. Kg5 {[%emt 0:00:07]} Qb2 {[%emt 0:00:34]} 62. Kh6 {[%emt 0:01:30][%cal Og6g7]} Qh8+ {[%emt 0:01:03]} 63. Kg5 {[%emt 0:00:03]} Qa1 {[%emt 0:00:26]} 64. Kh6 {[%emt 0:00:24] g7 would kill now.} Qh8+ {[%emt 0:00:32] Weighted Error Value: White=0.15 (very precise) /Black=0.25 (precise)} (64... Qxa4 65. g7 Qc6+ 66. Kg5 $18) 1/2-1/2